bitfinex/quotes_BTCUSD_20250620
["timestamp","ask_amount","ask_price","bid_price","bid_amount"]
[1750426569881,1.24986892,106000.0,105990.0,0.0304]
[1750426572962,0.54954671,106000.0,105990.0,0.2285318]
[1750426573185,0.70822671,106000.0,105990.0,0.0304]
[1750426573499,0.70822671,106000.0,105990.0,0.21909704]
[1750426573730,1.25926261,106000.0,105990.0,0.0151]
[1750426573948,6.99661429,106000.0,105990.0,0.0001]
[1750426574359,7.01917941,106000.0,105990.0,0.0001]
[1750426574562,7.04753041,106000.0,105990.0,0.0001]
[1750426576912,7.05699532,106000.0,105990.0,0.0001]
[1750426577741,7.09951532,106000.0,105990.0,0.0001]
[1750426578440,6.89831532,106000.0,105990.0,0.0001]
[1750426578761,7.09927532,106000.0,105990.0,0.0001]
[1750426581428,7.14927532,106000.0,105990.0,0.0001]
[1750426581637,6.16506361,105990.0,105980.0,0.0001]
[1750426581790,6.41886254,105990.0,105980.0,0.00014711]
[1750426582490,6.40236254,105990.0,105980.0,0.00014711]
[1750426583548,6.38736254,105990.0,105980.0,0.00014711]
[1750426583786,0.67601064,105990.0,105980.0,0.01624711]
[1750426583992,1.38560654,105990.0,105980.0,0.03234711]
[1750426584193,1.40014739,105990.0,105980.0,0.03234711]
[1750426584611,0.63341064,105990.0,105980.0,0.03234711]
[1750426584816,0.79176761,105990.0,105980.0,0.03234711]
[1750426585043,0.80120219,105990.0,105980.0,0.23049752]
[1750426585223,0.80120219,105990.0,105980.0,0.2304977]
[1750426585224,0.81063704,105990.0,105980.0,0.2304977]
[1750426585432,0.00943431,105990.0,105980.0,0.28564027]
[1750426585646,0.0614688,105990.0,105980.0,0.30451076]
[1750426585855,0.35886836,105990.0,105980.0,0.30451076]
[1750426586064,0.01886836,105990.0,105980.0,0.25880375]
[1750426586273,0.01886827,105990.0,105980.0,0.25880375]
[1750426586686,0.5995804,106000.0,105990.0,0.24760078]
[1750426586935,0.5995404,106000.0,105990.0,0.24760078]
[1750426587141,0.02830054,106000.0,105990.0,0.257035]
[1750426587342,0.01886676,106000.0,105990.0,0.257035]
[1750426587547,0.02830036,106000.0,105990.0,0.257035]
[1750426587754,0.01886676,106000.0,105990.0,0.257035]
[1750426587959,0.01886667,106000.0,105990.0,0.257035]
[1750426588166,0.03030027,106000.0,105990.0,0.28139401]
[1750426588371,0.02086667,106000.0,105990.0,0.28139401]
[1750426588575,0.01886667,106000.0,105990.0,0.257035]
[1750426588780,0.01886667,106000.0,105990.0,0.259035]
[1750426588781,0.02830027,106000.0,105990.0,0.259035]
[1750426588997,0.2169796,106000.0,105990.0,0.259035]
[1750426589200,0.03773414,106000.0,105990.0,0.259035]
[1750426589408,0.02830036,106000.0,105990.0,0.259035]
[1750426589607,0.02830018,106000.0,105990.0,0.32062821]
[1750426589821,0.02830036,106000.0,105990.0,0.259035]
[1750426590053,0.02830027,106000.0,105990.0,0.259035]
[1750426590281,0.03773405,106000.0,105990.0,0.259035]
[1750426590517,0.00943325,106000.0,105990.0,0.259035]
[1750426590756,0.03873396,106000.0,105990.0,0.259035]
[1750426590969,0.02930027,106000.0,105990.0,0.259035]
[1750426591128,0.01886667,106000.0,105990.0,0.259035]
[1750426591326,0.03773396,106000.0,105990.0,0.259035]
[1750426591742,0.78688368,106000.0,105990.0,0.24016647]
[1750426591955,0.76801675,106000.0,105990.0,0.0326]
[1750426592160,1.0891491,106000.0,105990.0,0.002]
[1750426592360,6.77985993,106000.0,105990.0,0.002]
[1750426592878,6.22882403,106000.0,105990.0,0.002]
[1750426593211,6.79440078,106000.0,105990.0,0.004]
[1750426593417,6.82520078,106000.0,105990.0,0.004]
[1750426593898,0.55267256,105990.0,105980.0,0.00014711]
[1750426594095,6.24338339,105990.0,105980.0,0.00014711]
[1750426594308,6.44422339,105990.0,105980.0,0.00014711]
[1750426596352,6.46062339,105990.0,105980.0,0.00014711]
[1750426597304,6.47662339,105990.0,105980.0,0.00014711]
[1750426598149,5.61514641,105980.0,105970.0,0.0001]
[1750426598316,6.48806124,105980.0,105970.0,0.0001]
[1750426598519,6.55260209,105980.0,105970.0,0.0001]
[1750426598726,7.10363799,105980.0,105970.0,0.0001]
[1750426599395,6.55260209,105980.0,105970.0,0.0001]
[1750426600282,6.55360209,105980.0,105970.0,0.0001]
[1750426600656,6.48760209,105980.0,105970.0,0.0001]
[1750426600853,6.69020209,105980.0,105970.0,0.0001]
[1750426601838,6.69028209,105980.0,105970.0,0.0001]
[1750426602055,6.69020209,105980.0,105970.0,0.0001]
[1750426602262,6.47300209,105980.0,105970.0,0.0001]
[1750426602475,6.67360209,105980.0,105970.0,0.0001]
[1750426603833,6.70670209,105980.0,105970.0,0.0001]
[1750426606551,6.75670209,105980.0,105970.0,0.0001]
[1750426606772,7.30773799,105980.0,105970.0,0.0001]
[1750426607709,5.61476511,105970.0,105960.0,0.0069264]
[1750426607979,6.97007584,105970.0,105960.0,0.00697344]
[1750426608697,0.19818781,105960.0,105950.0,0.0001]
[1750426608935,6.96913454,105960.0,105950.0,0.00890382]
[1750426609361,0.19824393,105930.0,105920.0,0.0067]
[1750426609585,0.89635394,105930.0,105920.0,0.0218]
[1750426610276,1.23635394,105930.0,105920.0,0.0218]
[1750426610767,1.23635394,105930.0,105920.0,0.00047062]
[1750426610992,1.23635394,105930.0,105920.0,0.00347062]
[1750426611454,1.23635394,105930.0,105920.0,0.01907062]
[1750426612207,1.38483876,105930.0,105920.0,0.01907062]
[1750426612442,0.83380286,105930.0,105920.0,0.03537062]
[1750426612673,1.38483876,105930.0,105920.0,0.03737062]
[1750426613122,1.39447308,105930.0,105920.0,0.03737062]
[1750426614539,1.38483876,105930.0,105920.0,0.03737062]
[1750426616157,1.38491876,105930.0,105920.0,0.03737062]
[1750426616576,1.18455876,105930.0,105920.0,0.03737062]
[1750426617002,1.38483876,105930.0,105920.0,0.03737062]
[1750426619800,1.18455876,105930.0,105920.0,0.03737062]
[1750426620007,1.08927983,105930.0,105920.0,0.03737062]
[1750426620233,1.28939983,105930.0,105920.0,0.03737062]
[1750426620441,1.08927983,105930.0,105920.0,0.03737062]
[1750426620649,1.28939983,105930.0,105920.0,0.03737062]
[1750426621849,1.28939983,105930.0,105920.0,0.04617075]
[1750426622340,1.08927983,105930.0,105920.0,0.04617075]
[1750426622588,1.39849961,105930.0,105920.0,0.01427075]
[1750426623286,1.39849961,105930.0,105920.0,0.01428284]
[1750426623785,1.39849961,105930.0,105920.0,0.00547062]
[1750426624571,0.63352286,105930.0,105920.0,0.03707062]
[1750426624810,1.38387876,105930.0,105920.0,0.03707062]
[1750426626865,1.38387876,105930.0,105920.0,0.00547062]
[1750426627383,1.39841961,105930.0,105920.0,0.00547062]
[1750426629195,1.19909961,105930.0,105920.0,0.00547062]
[1750426629460,1.39833961,105930.0,105920.0,0.00547062]
[1750426629750,1.39829961,105930.0,105920.0,0.00547062]
[1750426631332,1.38375876,105930.0,105920.0,0.00547062]
[1750426631545,1.38375876,105930.0,105920.0,0.03577062]
[1750426631969,1.38375876,105930.0,105920.0,0.00547062]
[1750426632179,1.18455876,105930.0,105920.0,0.00547062]
[1750426632407,1.38423876,105930.0,105920.0,0.02067062]
[1750426632636,0.58012393,105930.0,105920.0,0.02067062]
[1750426632867,1.13115983,105930.0,105920.0,0.03707062]
[1750426634442,1.28891983,105930.0,105920.0,0.03707062]
[1750426634680,6.47443561,105930.0,105920.0,0.00547062]
[1750426635420,6.49694166,105930.0,105920.0,0.00547062]
[1750426635662,6.49694166,105930.0,105920.0,0.00347062]
[1750426635939,6.49894166,105930.0,105920.0,0.00347062]
[1750426636392,6.49894166,105930.0,105920.0,0.00047062]
[1750426636882,6.50194166,105930.0,105920.0,0.00047062]
[1750426638535,7.05297756,105930.0,105920.0,0.00047062]
[1750426639038,7.27973756,105930.0,105920.0,0.00047062]
[1750426639626,6.72870166,105930.0,105920.0,0.00047062]
[1750426640061,6.72854166,105930.0,105920.0,0.00047062]
[1750426640270,7.27957756,105930.0,105920.0,0.00047062]
[1750426641190,0.34944358,105890.0,105880.0,0.0126643]
[1750426641453,1.38435365,105890.0,105880.0,0.02150872]
[1750426641917,1.3988945,105890.0,105880.0,0.0126643]
[1750426642648,7.0258264,105890.0,105880.0,0.02555684]
[1750426642868,7.05491787,105890.0,105880.0,0.02555684]
[1750426643090,0.54778193,105880.0,105870.0,0.0001]
[1750426643324,7.22820167,105880.0,105870.0,0.00014709]
[1750426643583,0.54786028,105840.0,105830.0,0.00056721]
[1750426643820,1.39417511,105840.0,105830.0,0.00056721]
[1750426644124,1.39417511,105840.0,105830.0,0.00070798]
[1750426644365,7.03474786,105840.0,105830.0,0.00070798]
[1750426644604,6.80414786,105840.0,105830.0,0.00070798]
[1750426644840,6.45307196,105840.0,105830.0,0.00070798]
[1750426645322,6.45403196,105840.0,105830.0,0.00670798]
[1750426645557,6.25411196,105840.0,105830.0,0.00670798]
[1750426645801,0.341,105840.0,105830.0,0.22403657]
[1750426646014,0.341,105840.0,105830.0,0.25513657]
[1750426646241,0.002,105840.0,105830.0,0.3504155]
[1750426646500,0.02833868,105860.0,105850.0,0.0151]
[1750426646716,0.02833868,105860.0,105850.0,0.21349377]
[1750426646717,0.56992761,105860.0,105850.0,0.21349377]
[1750426646962,0.38192,105860.0,105850.0,0.24778735]
[1750426647176,0.72824662,105870.0,105860.0,0.0305]
[1750426647177,0.75883745,105870.0,105860.0,0.0305]
[1750426647394,0.80075745,105870.0,105860.0,0.23832137]
[1750426647614,0.21724665,105870.0,105860.0,0.23832137]
[1750426647868,0.24972164,105870.0,105860.0,0.2288752]
[1750426648106,0.58972164,105870.0,105860.0,0.23832146]
[1750426648316,0.01889207,105860.0,105850.0,0.19839221]
[1750426648528,0.76830308,105860.0,105850.0,0.23893936]
[1750426648749,0.81022308,105860.0,105850.0,0.0311]
[1750426648972,0.79133101,105860.0,105850.0,0.0311]
[1750426649191,0.00944768,105840.0,105830.0,0.21948233]
[1750426649407,0.22675538,105840.0,105830.0,0.22893144]
[1750426649631,0.20786028,105840.0,105830.0,0.22893126]
[1750426649908,0.19841251,105840.0,105830.0,0.22893144]
[1750426650112,0.18896447,105840.0,105830.0,0.23838046]
[1750426650390,0.18896447,105840.0,105830.0,0.03994911]
[1750426650602,0.18896447,105840.0,105830.0,0.0305]
[1750426650824,0.18896447,105840.0,105830.0,0.22993144]
[1750426651039,0.18896447,105840.0,105830.0,0.24882921]
[1750426651267,0.18896447,105840.0,105830.0,0.23938037]
[1750426651932,0.18896447,105840.0,105830.0,0.23393144]
[1750426652153,0.16824813,105840.0,105830.0,0.25282921]
[1750426652364,0.07026349,105840.0,105830.0,0.2622777]
[1750426652583,0.53839395,105850.0,105840.0,0.21491269]
[1750426652798,0.7584878,105850.0,105840.0,0.23101269]
[1750426653015,0.5572878,105850.0,105840.0,0.23101269]
[1750426653234,0.74904101,105850.0,105840.0,0.03204822]
[1750426654143,0.54884101,105850.0,105840.0,0.03204822]
[1750426654388,0.75004101,105850.0,105840.0,0.03204822]
[1750426654810,0.74996101,105850.0,105840.0,0.03204822]
[1750426655026,0.01889581,105840.0,105830.0,0.23342859]
[1750426655253,0.01889554,105840.0,105830.0,0.23342859]
[1750426655504,0.02834358,105840.0,105830.0,0.23342859]
[1750426655746,0.01889518,105840.0,105830.0,0.23342859]
[1750426655961,1.30095691,105850.0,105840.0,0.21431251]
[1750426656178,0.59136101,105850.0,105840.0,0.21431251]
[1750426656443,0.60489795,105850.0,105840.0,0.0323]
[1750426656701,0.20786064,105840.0,105830.0,0.24137957]
[1750426656951,0.21730886,105840.0,105830.0,0.24137957]
[1750426657184,0.21730886,105840.0,105830.0,0.23837957]
[1750426657418,0.02834439,105840.0,105830.0,0.24037957]
[1750426657598,0.22675681,105840.0,105830.0,0.2403801]
[1750426657841,0.02834376,105840.0,105830.0,0.25927717]
[1750426658055,0.01889572,105840.0,105830.0,0.25927717]
[1750426658474,0.02834376,105840.0,105830.0,0.25927717]
[1750426658691,0.01889572,105840.0,105830.0,0.25927717]
[1750426658908,0.01889572,105840.0,105830.0,0.24982912]
[1750426659120,0.21730841,105840.0,105830.0,0.0325]
[1750426659348,0.20786064,105840.0,105830.0,0.0325]
[1750426659998,0.20786064,105840.0,105830.0,0.04194911]
[1750426660213,0.20786064,105840.0,105830.0,0.0355]
[1750426661111,0.75889654,105840.0,105830.0,0.005]
[1750426661358,1.19389203,105840.0,105830.0,0.005]
[1750426662046,1.35225203,105840.0,105830.0,0.005]
[1750426663222,1.38495203,105840.0,105830.0,0.005]
[1750426663477,1.19389203,105840.0,105830.0,0.005]
[1750426663709,0.5475772,105840.0,105830.0,0.22588233]
[1750426663930,0.5900972,105840.0,105830.0,0.23533144]
[1750426664166,0.5900972,105840.0,105830.0,0.24278037]
[1750426664424,0.39168451,105840.0,105830.0,0.26167779]
[1750426664620,0.41558023,105840.0,105830.0,0.27112645]
[1750426664911,0.6045447,105840.0,105830.0,0.26167796]
[1750426665111,0.05696742,105840.0,105830.0,0.27112645]
[1750426665327,0.08531028,105840.0,105830.0,0.27112645]
[1750426665571,0.80641618,105840.0,105830.0,0.003]
[1750426666010,0.80141618,105840.0,105830.0,0.003]
[1750426666224,0.18898233,105830.0,105820.0,0.0151]
[1750426666439,0.03779546,105830.0,105820.0,0.23910001]
[1750426666657,0.21732921,105830.0,105820.0,0.22965018]
[1750426666907,0.21732921,105830.0,105820.0,0.23910001]
[1750426667157,0.20788037,105830.0,105820.0,0.23910001]
[1750426667362,0.20788037,105830.0,105820.0,0.24854975]
[1750426667760,0.20788037,105830.0,105820.0,0.23910001]
[1750426667972,0.20788037,105830.0,105820.0,0.24854975]
[1750426668218,0.20788037,105830.0,105820.0,0.2609994]
[1750426668440,0.20788037,105830.0,105820.0,0.27044896]
[1750426668853,0.20788037,105830.0,105820.0,0.2629994]
[1750426669519,0.20788037,105830.0,105820.0,0.27244896]
[1750426669733,0.20787993,105830.0,105820.0,0.27244834]
[1750426669937,0.21732904,105830.0,105820.0,0.26299896]
[1750426670157,0.0188976,105830.0,105820.0,0.27244834]
[1750426670583,0.028346,105830.0,105820.0,0.27244834]
[1750426670800,0.01889724,105830.0,105820.0,0.43108834]
[1750426671009,0.01889698,105830.0,105820.0,0.43108834]
[1750426671433,0.0094484,105830.0,105820.0,0.43108834]
[1750426671652,0.25996944,105840.0,105830.0,0.23998028]
[1750426671873,0.00014076,105840.0,105830.0,0.90519235]
[1750426672111,0.00014076,105840.0,105830.0,0.35415645]
[1750426673694,0.00014076,105840.0,105830.0,0.35615645]
[1750426673915,0.01903603,105840.0,105830.0,0.30187965]
[1750426674127,0.22689667,105840.0,105830.0,0.26087761]
[1750426674352,0.22689667,105840.0,105830.0,0.40058028]
[1750426674582,0.2080014,105840.0,105830.0,0.34958233]
[1750426674802,0.2080014,105840.0,105830.0,0.1606]
[1750426675014,0.2080014,105840.0,105830.0,0.34958233]
[1750426675223,0.2080014,105840.0,105830.0,0.35903144]
[1750426675435,0.2080014,105840.0,105830.0,0.35915144]
[1750426675639,0.19855336,105840.0,105830.0,0.35915144]
[1750426675854,0.19855309,105840.0,105830.0,0.37804904]
[1750426676105,0.00014076,105840.0,105830.0,0.42964611]
[1750426676322,0.00014076,105840.0,105830.0,0.52492504]
[1750426676534,0.00014076,105840.0,105830.0,0.62019489]
[1750426679178,0.00958818,105840.0,105830.0,0.62015489]
[1750426679388,0.02848345,105840.0,105830.0,0.62015489]
[1750426679846,0.22689667,105840.0,105830.0,0.60125782]
[1750426680074,0.21744917,105840.0,105830.0,0.22524878]
[1750426680303,0.7590373,105840.0,105830.0,0.16068]
[1750426680740,0.2080014,105840.0,105830.0,0.16068]
[1750426680976,0.2080014,105840.0,105830.0,0.002]
[1750426680977,0.7590373,105840.0,105830.0,0.002]
[1750426682916,1.0990373,105840.0,105830.0,0.002]
[1750426683435,1.1304373,105840.0,105830.0,0.002]
[1750426687127,1.22571623,105840.0,105830.0,0.002]
[1750426687563,1.2998773,105840.0,105830.0,0.002]
[1750426688225,0.41092398,105840.0,105830.0,0.23592842]
[1750426688446,0.40147603,105840.0,105830.0,0.25162842]
[1750426688697,0.00014076,105840.0,105830.0,0.25162842]
[1750426688905,0.00958818,105840.0,105830.0,0.25162842]
[1750426689118,0.01903568,105840.0,105830.0,0.25162842]
[1750426689329,0.00014076,105840.0,105830.0,0.25162842]
[1750426689548,0.00958835,105840.0,105830.0,0.25162842]
[1750426689993,0.01903612,105840.0,105830.0,0.25162842]
[1750426690206,0.01903603,105840.0,105830.0,0.25162842]
[1750426690645,0.00014076,105840.0,105830.0,0.25162842]
[1750426690857,0.01903586,105840.0,105830.0,0.25162842]
[1750426691077,0.00958818,105840.0,105830.0,0.25162842]
[1750426691311,0.00014076,105840.0,105830.0,0.25162842]
[1750426691529,0.00014076,105840.0,105830.0,0.31341715]
[1750426691742,0.00958835,105840.0,105830.0,0.31341715]
[1750426691958,0.01903612,105840.0,105830.0,0.31341715]
[1750426692176,0.01903603,105840.0,105830.0,0.25162842]
[1750426692418,0.00958835,105840.0,105830.0,0.25162842]
[1750426692630,0.00014076,105840.0,105830.0,0.25162842]
[1750426692852,0.01903594,105840.0,105830.0,0.25162842]
[1750426693066,0.02848371,105840.0,105830.0,0.25162842]
[1750426693278,0.01903594,105840.0,105830.0,0.25162842]
[1750426693490,0.00958826,105840.0,105830.0,0.25162842]
[1750426693707,0.01903594,105840.0,105830.0,0.25162842]
[1750426694137,0.0284838,105840.0,105830.0,0.25162842]
[1750426694570,0.01903594,105840.0,105830.0,0.25162842]
[1750426694969,0.02848371,105840.0,105830.0,0.41010842]
[1750426695404,0.00014076,105840.0,105830.0,0.41010842]
[1750426695620,0.00014076,105840.0,105830.0,0.45357316]
[1750426695834,0.00958818,105840.0,105830.0,0.45357316]
[1750426696857,0.01903568,105840.0,105830.0,0.45357316]
[1750426697297,0.00958818,105840.0,105830.0,0.45357316]
[1750426697507,0.01903577,105840.0,105830.0,0.45357316]
[1750426697934,0.02848363,105840.0,105830.0,0.44412467]
[1750426698150,0.03793167,105840.0,105830.0,0.41010842]
[1750426698369,0.02848363,105840.0,105830.0,0.41010842]
[1750426698854,0.02848354,105840.0,105830.0,0.41010842]
[1750426699349,0.00014076,105840.0,105830.0,0.41010842]
[1750426699821,0.00014076,105840.0,105830.0,0.45774073]
[1750426700258,0.00014076,105840.0,105830.0,0.55301966]
[1750426700683,0.00958818,105840.0,105830.0,0.55301966]
[1750426700904,0.00014076,105840.0,105830.0,0.55301966]
[1750426702252,0.00014076,105840.0,105830.0,0.55277966]
[1750426702931,0.00958818,105840.0,105830.0,0.55277966]
[1750426703911,0.01903577,105840.0,105830.0,0.38509117]
[1750426704147,0.02848354,105840.0,105830.0,0.37756842]
[1750426704364,0.01903577,105840.0,105830.0,0.37756842]
[1750426704578,0.00958818,105840.0,105830.0,0.39296842]
[1750426704811,0.01903577,105840.0,105830.0,0.39296842]
[1750426705032,0.01903577,105840.0,105830.0,0.23472842]
[1750426705280,0.02848354,105840.0,105830.0,0.39292842]
[1750426705967,0.03793158,105840.0,105830.0,0.37752842]
[1750426706204,0.20800104,105840.0,105830.0,0.002]
[1750426706445,0.79033694,105840.0,105830.0,0.002]
[1750426706662,1.77665177,105840.0,105830.0,0.002]
[1750426706903,1.22561587,105840.0,105830.0,0.002]
[1750426707138,1.24015672,105840.0,105830.0,0.002]
[1750426707357,1.79119262,105840.0,105830.0,0.002]
[1750426707871,0.21734939,105820.0,105810.0,0.21342069]
[1750426708112,0.80137582,105820.0,105810.0,0.05510069]
[1750426708342,0.81687582,105820.0,105810.0,0.05510069]
[1750426708990,0.83297582,105820.0,105810.0,0.05510069]
[1750426710621,0.20789992,105820.0,105810.0,0.25356955]
[1750426710838,0.25033992,105820.0,105810.0,0.27247072]
[1750426711050,0.25033992,105820.0,105810.0,0.27447072]
[1750426711266,0.25033992,105820.0,105810.0,0.24611874]
[1750426711480,0.80137582,105820.0,105810.0,0.25556964]
[1750426711667,0.25033992,105820.0,105810.0,0.27447081]
[1750426711982,0.38244,105830.0,105820.0,0.21734913]
[1750426712204,0.80791318,105840.0,105830.0,0.20787993]
[1750426712422,0.81736104,105840.0,105830.0,0.19843126]
[1750426712650,0.80791318,105840.0,105830.0,0.18898233]
[1750426712872,0.79846523,105840.0,105820.0,0.23284841]
[1750426713114,0.01889795,105830.0,105820.0,0.22339921]
[1750426713334,0.21734939,105820.0,105810.0,0.05710069]
[1750426713564,1.09893582,105820.0,105810.0,0.05510069]
[1750426713787,1.13173582,105820.0,105810.0,0.05510069]
[1750426716548,0.54789992,105820.0,105810.0,0.24411874]
[1750426716817,0.58077018,105820.0,105810.0,0.24411874]
[1750426717055,0.21734967,105820.0,105810.0,0.25356955]
[1750426717287,0.21734967,105820.0,105810.0,0.26302009]
[1750426717525,0.22679967,105820.0,105810.0,0.27247045]
[1750426717759,0.01889921,105820.0,105810.0,0.28192072]
[1750426717993,0.39176893,105830.0,105820.0,0.20789975]
[1750426718235,0.35889707,105830.0,105820.0,0.37594913]
[1750426718453,0.02834565,105830.0,105820.0,0.40814913]
[1750426718678,0.01889698,105830.0,105820.0,0.40814913]
[1750426718926,0.28827675,105840.0,105830.0,0.20787993]
[1750426719153,0.28827675,105840.0,105830.0,0.21732842]
[1750426719154,0.34958835,105840.0,105830.0,0.21732842]
[1750426719447,0.01903603,105840.0,105830.0,0.21732842]
[1750426719659,0.00958826,105840.0,105830.0,0.23292842]
[1750426719885,0.00014076,105840.0,105830.0,0.23292842]
[1750426720340,0.00514076,105840.0,105830.0,0.23292842]
[1750426720567,0.02403603,105840.0,105830.0,0.21732842]
[1750426721221,0.02403594,105840.0,105830.0,0.21732842]
[1750426721448,0.0334838,105840.0,105830.0,0.21732842]
[1750426721907,0.0284838,105840.0,105830.0,0.21732842]
[1750426722325,0.03993175,105840.0,105830.0,0.21732842]
[1750426722570,0.04937979,105840.0,105830.0,0.21732842]
[1750426722776,0.2288973,105840.0,105830.0,0.2078801]
[1750426723010,0.7799332,105840.0,105830.0,0.21732885]
[1750426723239,0.7799332,105840.0,105830.0,0.38521752]
[1750426723456,0.02103657,105840.0,105830.0,0.39466601]
[1750426723906,0.03993274,105840.0,105830.0,0.39466601]
[1750426724611,0.22889721,105840.0,105830.0,0.38521752]
[1750426724867,0.21944935,105840.0,105830.0,0.37576885]
[1750426725117,0.01889867,105820.0,105810.0,0.38054785]
[1750426725328,0.01889858,105820.0,105810.0,0.5321183]
[1750426725565,0.0094492,105820.0,105810.0,0.5321183]
[1750426725826,0.01889698,105830.0,105820.0,0.21734913]
[1750426726041,0.23622602,105830.0,105820.0,0.21734913]
[1750426726266,0.21732895,105830.0,105820.0,0.1984501]
[1750426726503,0.21732895,105830.0,105820.0,0.20789993]
[1750426726719,0.21732895,105830.0,105820.0,0.21734958]
[1750426726986,0.76836485,105830.0,105820.0,0.1984501]
[1750426727173,0.76836485,105830.0,105810.0,0.5321183]
[1750426727174,0.00944983,105820.0,105810.0,0.3582983]
[1750426727441,0.02834904,105820.0,105810.0,0.27247018]
[1750426727675,0.23624851,105820.0,105810.0,0.43075018]
[1750426727918,0.03779833,105820.0,105810.0,0.43075018]
[1750426728132,0.02834832,105820.0,105810.0,0.43075018]
[1750426728365,0.03779815,105820.0,105810.0,0.43375018]
[1750426729288,0.53843135,105830.0,105820.0,0.20789992]
[1750426729517,0.55732921,105830.0,105820.0,0.21734939]
[1750426729965,0.40121724,105830.0,105820.0,0.22679877]
[1750426730183,0.00944849,105830.0,105820.0,0.24279877]
[1750426730434,1.1413573,105840.0,105830.0,0.19843126]
[1750426730694,0.5903214,105840.0,105830.0,0.19843126]
[1750426730922,0.5903214,105840.0,105830.0,0.21732885]
[1750426731147,0.5480014,105840.0,105830.0,0.22677752]
[1750426731371,0.59032095,105840.0,105830.0,0.23622601]
[1750426731591,0.61866507,105840.0,105830.0,0.22677752]
[1750426731821,0.61121739,105840.0,105830.0,0.22677752]
[1750426732050,0.56889739,105840.0,105830.0,0.22677752]
[1750426732290,0.56889739,105840.0,105830.0,0.2362261]
[1750426732516,0.61121739,105840.0,105830.0,0.22677717]
[1750426733597,0.56889739,105840.0,105830.0,0.22677717]
[1750426733785,0.61121739,105840.0,105830.0,0.22677717]
[1750426734872,0.37048407,105840.0,105830.0,0.23622566]
[1750426735081,0.61121667,105840.0,105830.0,0.23622566]
[1750426735290,0.62066489,105840.0,105830.0,0.23622566]
[1750426735513,0.62066489,105840.0,105830.0,0.22677717]
[1750426735733,0.62066489,105840.0,105830.0,0.21732859]
[1750426735952,0.61121739,105840.0,105830.0,0.21732859]
[1750426736604,1.15280552,105840.0,105830.0,0.20787992]
[1750426737057,1.15280552,105840.0,105830.0,0.21732859]
[1750426737284,1.11048552,105840.0,105830.0,0.20787992]
[1750426737530,1.11048552,105840.0,105830.0,0.2173285]
[1750426738187,0.36103603,105840.0,105830.0,0.22677699]
[1750426738424,0.37048398,105840.0,105830.0,0.24257699]
[1750426738637,0.36103603,105840.0,105830.0,0.24257699]
[1750426738856,0.02103603,105840.0,105830.0,0.24257699]
[1750426739088,0.00214076,105840.0,105830.0,0.24257699]
[1750426739336,0.00214076,105840.0,105830.0,0.51159592]
[1750426740098,0.00214076,105840.0,105830.0,0.60686577]
[1750426741238,0.00214076,105840.0,105830.0,1.23303175]
[1750426741504,0.00214076,105840.0,105830.0,1.57303175]
[1750426741742,0.00023676,105840.0,105830.0,1.71244252]
[1750426741992,0.00023676,105840.0,105830.0,0.93902577]
[1750426742230,0.5510359,105870.0,105860.0,0.217267]
[1750426742464,0.76840395,105880.0,105870.0,0.20780146]
[1750426742684,0.76840395,105880.0,105870.0,0.21724638]
[1750426742685,0.06134978,105880.0,105870.0,0.21724638]
[1750426742914,0.00014147,105880.0,105870.0,0.21724638]
[1750426743132,0.34014147,105880.0,105870.0,0.21724638]
[1750426743577,0.00014147,105880.0,105870.0,0.47084531]
[1750426743806,0.00014147,105880.0,105870.0,0.58332192]
[1750426744258,0.00014147,105880.0,105870.0,0.57406277]
[1750426745386,0.00014147,105880.0,105870.0,1.12509867]
[1750426746044,0.00314147,105880.0,105870.0,1.12509867]
[1750426746232,0.00314147,105880.0,105870.0,1.46509867]
[1750426746481,0.00014147,105880.0,105870.0,1.46509867]
[1750426746724,0.00014147,105880.0,105870.0,1.46609867]
[1750426748309,0.00014147,105880.0,105870.0,1.475652]
[1750426748543,0.00014147,105880.0,105870.0,1.96743779]
[1750426748967,0.00014147,105880.0,105870.0,1.93343285]
[1750426749200,0.00014147,105880.0,105870.0,1.93243285]
[1750426749646,0.00014147,105880.0,105870.0,1.93443285]
[1750426749861,0.00014147,105880.0,105870.0,1.93243285]
[1750426750101,0.00014147,105880.0,105870.0,1.88243285]
[1750426750311,0.00114147,105880.0,105870.0,1.94743285]
[1750426750537,0.00114147,105880.0,105870.0,1.95143285]
[1750426751178,0.00114147,105880.0,105870.0,2.63656875]
[1750426751393,5e-05,105890.0,105880.0,1.60019775]
[1750426751607,5e-05,105890.0,105880.0,1.79074653]
[1750426751819,5e-05,105900.0,105890.0,1.35368219]
[1750426752037,5e-05,105900.0,105890.0,1.60708112]
[1750426752909,5e-05,105900.0,105890.0,1.65708112]
[1750426753135,5e-05,105900.0,105890.0,1.60708112]
[1750426753354,5e-05,105900.0,105890.0,1.54423097]
[1750426753570,5e-05,105900.0,105890.0,1.74463097]
[1750426754028,5e-05,105900.0,105890.0,1.69463097]
[1750426754251,5e-05,105900.0,105890.0,1.82298997]
[1750426754472,5e-05,105930.0,105920.0,0.21714393]
[1750426754704,0.00052175,105930.0,105920.0,1.0966238]
[1750426754925,0.00052175,105930.0,105920.0,1.1389438]
[1750426755138,0.00052175,105930.0,105920.0,1.59348465]
[1750426755623,0.00052175,105930.0,105920.0,1.62183465]
[1750426755849,0.00052175,105930.0,105920.0,0.97075875]
[1750426756070,0.00052175,105930.0,105920.0,1.62179465]
[1750426756298,0.03075,105980.0,105970.0,0.21704147]
[1750426756516,0.00019146,105980.0,105970.0,0.37516147]
[1750426756739,0.00962649,105980.0,105970.0,0.37516147]
[1750426756970,0.00019146,105980.0,105970.0,0.43343847]
[1750426757194,0.00019146,105980.0,105970.0,0.5287174]
[1750426757674,0.00019146,105980.0,105970.0,0.3705974]
[1750426757906,0.01219146,105980.0,105970.0,0.5286774]
[1750426758100,0.00719146,105980.0,105970.0,0.5286774]
[1750426758350,0.00019146,105980.0,105970.0,0.55746237]
[1750426758802,0.00219146,105980.0,105970.0,0.55746237]
[1750426759894,0.00219146,105980.0,105970.0,0.55846237]
[1750426761050,0.01162649,105980.0,105970.0,0.34210537]
[1750426761274,0.0210616,105980.0,105970.0,0.50010537]
[1750426761506,0.0304968,105980.0,105970.0,0.50010537]
[1750426761731,0.01162649,105980.0,105970.0,0.50010537]
[1750426761957,0.00219146,105980.0,105970.0,0.50010537]
[1750426762167,0.00219146,105980.0,105970.0,0.57371126]
[1750426764582,0.00219146,105980.0,105970.0,1.15734716]
[1750426764804,0.00219146,105980.0,105970.0,0.60631126]
[1750426765023,0.00219146,105980.0,105970.0,1.20734716]
[1750426765263,0.00219146,105980.0,105970.0,0.65631126]
[1750426765490,0.00219146,105980.0,105970.0,1.54734716]
[1750426765709,0.00219146,105980.0,105970.0,2.33443295]
[1750426766448,0.00019146,105980.0,105970.0,2.33443295]
[1750426766875,0.00019146,105980.0,105970.0,2.33643295]
[1750426767086,0.00019146,105980.0,105970.0,1.78539705]
[1750426767304,0.00019146,105980.0,105970.0,2.33643295]
[1750426767519,0.00019146,105980.0,105970.0,2.33343295]